bitfinex/quotes_BTCUSD_20250813
["timestamp","ask_amount","ask_price","bid_price","bid_amount"]
[1755050720604,1.14703705,119270.0,119260.0,0.32888]
[1755050721528,1.17218605,119270.0,119260.0,0.32888]
[1755050722253,1.16394729,119270.0,119260.0,0.32888]
[1755050722949,1.17245201,119270.0,119260.0,0.32888]
[1755050725644,1.17245201,119270.0,119260.0,0.32896]
[1755050730945,1.17245201,119270.0,119260.0,0.20104]
[1755050731190,1.17245201,119270.0,119260.0,0.32912]
[1755050732729,2.35379522,119270.0,119260.0,0.32912]
[1755050735846,1.34130206,119270.0,119260.0,0.32912]
[1755050742957,1.32741734,119270.0,119260.0,0.33114]
[1755050743574,1.33058734,119270.0,119260.0,0.33114]
[1755050743918,1.33258734,119270.0,119260.0,0.33114]
[1755050744140,1.33258734,119270.0,119260.0,0.32912]
[1755050744771,2.3450805,119270.0,119260.0,0.32896]
[1755050745189,2.35333687,119270.0,119260.0,0.32896]
[1755050746063,2.35133687,119270.0,119260.0,0.32896]
[1755050746449,2.35533687,119270.0,119260.0,0.32896]
[1755050747412,2.35733687,119270.0,119260.0,0.32896]
[1755050758914,2.35733687,119270.0,119260.0,0.20104]
[1755050759120,2.35733687,119270.0,119260.0,0.32892]
[1755050772289,2.35733687,119270.0,119260.0,0.12788]
[1755050777134,2.35733687,119270.0,119260.0,0.32896]
[1755050777344,1.34484371,119270.0,119260.0,0.32896]
[1755050777560,1.34481371,119270.0,119260.0,0.32896]
[1755050779051,1.34481371,119270.0,119260.0,0.20108]
[1755050779266,1.34481371,119270.0,119260.0,0.32896]
[1755050781878,1.26209046,119270.0,119260.0,0.33104]
[1755050782090,1.26209046,119270.0,119260.0,0.33296]
[1755050782091,1.24869409,119270.0,119260.0,0.33296]
[1755050782994,1.22354509,119270.0,119260.0,0.33296]
[1755050784757,1.22354509,119270.0,119260.0,0.33104]
[1755050785256,1.22354509,119270.0,119260.0,0.33296]
[1755050785257,1.20609607,119270.0,119260.0,0.33296]
[1755050785465,1.22354509,119270.0,119260.0,0.33296]
[1755050786116,1.21954509,119270.0,119260.0,0.33296]
[1755050786565,1.21754509,119270.0,119260.0,0.33296]
[1755050786783,1.21854509,119270.0,119260.0,0.33296]
[1755050791179,1.21854509,119270.0,119260.0,0.33104]
[1755050793013,2.23614825,119270.0,119260.0,0.20108]
[1755050793243,2.23614825,119270.0,119260.0,0.32896]
[1755050793463,1.22365509,119270.0,119260.0,0.32896]
[1755050796621,2.23614825,119270.0,119260.0,0.32896]
[1755050797021,2.23614825,119270.0,119260.0,0.20108]
[1755050797241,2.23614825,119270.0,119260.0,0.32912]
[1755050797242,2.3188715,119270.0,119260.0,0.32912]
[1755050797693,2.3440215,119270.0,119260.0,0.32912]
[1755050798557,2.3440215,119270.0,119260.0,0.32916]
[1755050798796,1.38233591,119270.0,119260.0,0.32916]
[1755050799023,1.38233591,119270.0,119250.0,0.2017352]
[1755050799024,0.20514984,119260.0,119250.0,0.2017352]
[1755050799254,1.35318382,119260.0,119250.0,0.3298152]
[1755050799486,1.35628382,119260.0,119250.0,0.3298152]
[1755050800429,1.35728382,119260.0,119250.0,0.3298152]
[1755050800866,1.35828382,119260.0,119250.0,0.3298152]
[1755050803571,1.38383635,119260.0,119250.0,0.3298152]
[1755050805163,1.40898935,119260.0,119250.0,0.3298152]
[1755050819739,1.40898935,119260.0,119250.0,0.3298152]
[1755050820826,2.4722577,119260.0,119250.0,0.3298152]
[1755050822967,2.4722577,119260.0,119250.0,0.2017352]
[1755050823179,2.4722577,119260.0,119250.0,0.3297752]
[1755050832247,2.4722577,119260.0,119250.0,0.3318452]
[1755050832449,2.4671477,119260.0,119250.0,0.3318452]
[1755050836038,2.4722877,119260.0,119250.0,0.3318452]
[1755050836256,2.4722877,119260.0,119250.0,0.3297752]
[1755050837464,2.4722877,119260.0,119250.0,0.2017352]
[1755050837687,2.4722877,119260.0,119250.0,0.3296952]
[1755050838818,1.40908203,119260.0,119250.0,0.3296952]
[1755050845471,0.34571862,119260.0,119250.0,0.3296952]
[1755050845693,1.40908203,119260.0,119250.0,0.3296952]
[1755050851201,1.40908203,119260.0,119250.0,0.1286152]
[1755050851649,0.34571862,119260.0,119250.0,0.1286152]
[1755050851893,1.40908203,119260.0,119250.0,0.1286152]
[1755050853393,1.40908203,119260.0,119250.0,0.1286552]
[1755050853856,1.40908203,119260.0,119250.0,0.12800001]
[1755050853857,2.49744544,119260.0,119250.0,0.12800001]
[1755050854048,0.2051639,119250.0,119240.0,0.20132001]
[1755050854321,1.35636056,119250.0,119240.0,0.20132001]
[1755050855183,1.38151756,119250.0,119240.0,0.32932001]
[1755050855413,1.38200618,119250.0,119240.0,0.32932001]
[1755050855862,1.38500618,119250.0,119240.0,0.32932001]
[1755050856313,1.38500618,119250.0,119240.0,0.20132001]
[1755050856534,0.20517797,119240.0,119230.0,0.003]
[1755050856771,2.41973804,119240.0,119230.0,0.003]
[1755050857019,2.41973804,119240.0,119230.0,0.13096]
[1755050857251,0.21364344,119200.0,119190.0,0.20112]
[1755050857470,0.21364344,119200.0,119190.0,0.34214387]
[1755050857471,1.27700685,119200.0,119190.0,0.34214387]
[1755050858149,0.21364344,119200.0,119190.0,0.34214387]
[1755050858365,1.27700685,119200.0,119190.0,0.34214387]
[1755050858523,1.27700685,119200.0,119190.0,0.34219281]
[1755050859801,1.27700685,119200.0,119190.0,0.32908894]
[1755050860275,1.27700685,119200.0,119190.0,4.894e-05]
[1755050860431,1.27700685,119200.0,119190.0,0.32908894]
[1755050860643,0.03744902,119200.0,119190.0,0.32908894]
[1755050860846,0.20523425,119200.0,119190.0,0.33846232]
[1755050861214,0.20523425,119200.0,119190.0,0.32908894]
[1755050862745,1.26859766,119200.0,119190.0,4.894e-05]
[1755050862963,1.26859766,119200.0,119190.0,0.32912894]
[1755050866090,0.20523425,119200.0,119190.0,0.32912894]
[1755050866300,1.26859766,119200.0,119190.0,0.32912894]
[1755050868567,0.03744902,119200.0,119190.0,0.32912894]
[1755050868780,0.02,119200.0,119190.0,0.41185219]
[1755050870758,0.02,119200.0,119190.0,0.41385219]
[1755050871177,0.02,119200.0,119190.0,0.41585219]
[1755050874713,0.08684771,119210.0,119200.0,0.2]
[1755050874927,0.08684771,119210.0,119200.0,0.28272325]
[1755050876607,0.08684771,119210.0,119200.0,0.28372325]
[1755050876992,0.08684771,119210.0,119200.0,0.28572325]
[1755050878529,0.08684771,119210.0,119200.0,0.61484325]
[1755050880099,0.02,119210.0,119200.0,0.61484325]
[1755050883503,1.08870341,119210.0,119200.0,0.61484325]
[1755050883717,0.02,119210.0,119200.0,0.61484325]
[1755050886079,1.25647457,119210.0,119200.0,0.61480325]
[1755050886307,1.25647457,119210.0,119200.0,0.41480325]
[1755050886505,1.27392359,119210.0,119200.0,0.33208]
[1755050891641,1.28234029,119210.0,119200.0,0.33208]
[1755050892348,1.28234029,119210.0,119200.0,0.33008]
[1755050892757,1.28234029,119210.0,119200.0,0.33108]
[1755050893397,1.27392359,119210.0,119200.0,0.33108]
[1755050894452,1.27392359,119210.0,119200.0,0.33008]
[1755050894863,1.28247973,119210.0,119200.0,0.33008]
[1755050895671,1.36520298,119210.0,119200.0,0.20216]
[1755050895944,1.38886298,119210.0,119200.0,0.33008]
[1755050896705,1.41402598,119210.0,119200.0,0.33008]
[1755050897357,1.41402598,119210.0,119200.0,0.32908]
[1755050898107,1.41502598,119210.0,119200.0,0.32908]
[1755050898340,1.48187369,119210.0,119200.0,0.20116]
[1755050898566,1.48187369,119210.0,119200.0,0.32908]
[1755050902401,1.41502598,119210.0,119200.0,0.32908]
[1755050902402,1.39136598,119210.0,119200.0,0.32908]
[1755050905988,1.38280984,119210.0,119200.0,0.32908]
[1755050907702,1.30008659,119210.0,119200.0,0.32908]
[1755050911008,1.27492359,119210.0,119200.0,0.32908]
[1755050914381,1.26958359,119210.0,119200.0,0.32908]
[1755050914819,1.27468359,119210.0,119200.0,0.32908]
[1755050915788,1.27468359,119210.0,119200.0,0.33008]
[1755050916372,1.27368359,119210.0,119200.0,0.33008]
[1755050917547,1.3405313,119210.0,119200.0,0.33008]
[1755050918396,1.3405313,119210.0,119200.0,0.32908]
[1755050918868,1.3405313,119210.0,119200.0,0.33008]
[1755050919338,1.3405313,119210.0,119200.0,0.32908]
[1755050920252,1.3656923,119210.0,119200.0,0.32908]
[1755050920482,1.3666923,119210.0,119200.0,0.32908]
[1755050924870,1.29984459,119210.0,119200.0,0.32908]
[1755050925390,1.26958359,119210.0,119200.0,0.32908]
[1755050925852,1.27267359,119210.0,119200.0,0.32908]
[1755050926286,1.27468359,119210.0,119200.0,0.32908]
[1755050928558,1.29984459,119210.0,119200.0,0.32908]
[1755050931786,0.18524833,119190.0,119160.0,0.03278486]
[1755050932003,1.24861174,119190.0,119170.0,0.25173864]
[1755050932190,1.06336341,119180.0,119170.0,0.24244967]
[1755050932414,0.02,119180.0,119170.0,0.23935406]
[1755050932652,0.02,119180.0,119170.0,0.21224058]
[1755050933088,0.18781339,119180.0,119170.0,0.34016058]
[1755050933959,0.02,119180.0,119170.0,0.34016058]
[1755050934177,0.02,119180.0,119170.0,0.34216058]
[1755050935379,0.02,119180.0,119170.0,0.34416058]
[1755050935614,1.2511768,119180.0,119170.0,0.34416058]
[1755050936838,1.26862582,119180.0,119170.0,0.33308]
[1755050939257,0.20526241,119180.0,119170.0,0.33308]
[1755050939492,1.26862582,119180.0,119170.0,0.33308]
[1755050939707,0.03744902,119180.0,119170.0,0.33308]
[1755050939919,1.26862582,119180.0,119170.0,0.33308]
[1755050940340,1.27185582,119180.0,119170.0,0.33308]
[1755050941431,1.27398582,119180.0,119170.0,0.33308]
[1755050943357,0.21062241,119180.0,119170.0,0.33308]
[1755050943567,1.27398582,119180.0,119170.0,0.33308]
[1755050945587,1.27398582,119180.0,119170.0,0.20358715]
[1755050946730,1.27398582,119180.0,119170.0,0.33150715]
[1755050951538,0.21062241,119180.0,119170.0,0.33150715]
[1755050951751,1.27398582,119180.0,119170.0,0.33150715]
[1755050953988,0.21062241,119180.0,119170.0,0.33150715]
[1755050954181,1.27398582,119180.0,119170.0,0.33150715]
[1755050960345,0.21062241,119180.0,119170.0,0.33150715]
[1755050960565,1.27398582,119180.0,119170.0,0.33150715]
[1755050963677,0.21062241,119180.0,119170.0,0.33150715]
[1755050963871,1.27398582,119180.0,119170.0,0.33150715]
[1755050965451,1.27398582,119180.0,119170.0,0.33112]
[1755050966014,1.27398582,119180.0,119170.0,0.32912]
[1755050966219,1.27398582,119180.0,119170.0,0.33112]
[1755050966628,1.27398582,119180.0,119170.0,0.33212]
[1755050967032,0.21062241,119180.0,119170.0,0.33212]
[1755050967257,1.27398582,119180.0,119170.0,0.33212]
[1755050967684,0.03744902,119180.0,119170.0,0.33212]
[1755050969016,0.02,119180.0,119170.0,0.61484325]
[1755050970014,0.02294,119180.0,119170.0,0.61484325]
[1755050970346,0.02505,119180.0,119170.0,0.61484325]
[1755050970727,0.02505,119180.0,119170.0,0.64000525]
[1755050971944,0.02294,119180.0,119170.0,0.64000525]
[1755050974168,1.2562268,119180.0,119170.0,0.64000525]
[1755050976262,0.02,119180.0,119170.0,0.64000525]
[1755050981956,25.02,119180.0,119170.0,0.64000525]
[1755050988257,25.0,119180.0,119170.0,0.64000525]
[1755050992104,25.00294,119180.0,119170.0,0.64000525]
[1755050993499,26.06630341,119180.0,119170.0,0.51208525]
[1755050993712,26.08630341,119180.0,119170.0,0.64000525]
[1755050993931,26.2541168,119180.0,119170.0,0.44000525]
[1755050995137,26.27156582,119180.0,119170.0,0.229362]
[1755050995375,26.29505582,119180.0,119170.0,0.33212]
[1755051002157,26.29604557,119180.0,119170.0,0.33212]
[1755051003577,25.23169241,119180.0,119170.0,0.33212]
[1755051003798,26.29604557,119180.0,119170.0,0.33212]
[1755051005922,26.27255557,119180.0,119170.0,0.33212]
[1755051009114,25.20820241,119180.0,119170.0,0.33212]
[1755051009334,26.27255557,119180.0,119170.0,0.33212]
[1755051010649,25.20820241,119180.0,119170.0,0.33212]
[1755051010863,26.27255557,119180.0,119170.0,0.33212]
[1755051012160,26.10474218,119180.0,119170.0,0.33212]
[1755051014440,26.27255557,119180.0,119170.0,0.33212]
[1755051021800,25.20820241,119180.0,119170.0,0.33212]
[1755051022004,26.27255557,119180.0,119170.0,0.33212]
[1755051028777,26.27247426,119180.0,119170.0,0.33212]
[1755051031928,25.20820241,119180.0,119170.0,0.33212]
[1755051032143,26.27247426,119180.0,119170.0,0.33212]
[1755051048225,25.20820241,119180.0,119170.0,0.33212]
[1755051048435,26.27247426,119180.0,119170.0,0.33212]
[1755051074426,26.27258426,119180.0,119170.0,0.33212]
[1755051074653,27.41661584,119180.0,119170.0,0.33208]
[1755051074859,26.35234399,119180.0,119170.0,0.33208]
[1755051075275,25.31231214,119180.0,119170.0,0.33208]
[1755051075547,27.44085584,119180.0,119170.0,0.33208]
[1755051075771,27.46602484,119180.0,119170.0,0.33208]
[1755051075985,27.46602484,119180.0,119170.0,0.33108]
[1755051076201,27.46702484,119180.0,119170.0,0.33108]
[1755051076595,27.46702484,119180.0,119170.0,0.32908]
[1755051077033,27.46602484,119180.0,119170.0,0.32908]
[1755051077271,0.02,119140.0,119130.0,4e-05]
[1755051077495,1.10172087,119140.0,119130.0,0.20124]
[1755051077717,1.10172087,119140.0,119130.0,0.20951032]
[1755051078166,1.10477087,119140.0,119130.0,0.20951032]
[1755051078394,0.21032875,119140.0,119130.0,0.20124]
[1755051078616,1.2746006,119140.0,119130.0,0.33196895]
[1755051080003,1.2746006,119140.0,119130.0,0.33296895]
[1755051080219,1.2746006,119140.0,119130.0,0.34151606]
[1755051080424,1.10172087,119140.0,119130.0,0.34151606]
[1755051080648,0.02,119140.0,119130.0,0.54151606]
[1755051081331,0.02,119140.0,119130.0,0.62423931]
[1755051087457,0.02,119150.0,119130.0,0.62423931]
[1755051087664,0.02,119150.0,119140.0,0.08272325]
[1755051088114,0.08684771,119170.0,119150.0,0.7]
[1755051088321,0.06684771,119170.0,119160.0,0.73664045]
[1755051088544,25.01703648,119180.0,119170.0,0.2]
[1755051088757,25.01703648,119180.0,119170.0,0.28272325]
[1755051089834,25.01703648,119180.0,119170.0,0.2827722]
[1755051090689,25.01703648,119180.0,119170.0,0.2837722]
[1755051091090,25.02016648,119180.0,119170.0,0.2857722]
[1755051091315,26.08464452,119180.0,119170.0,0.2857722]
[1755051091538,26.08464452,119180.0,119170.0,0.00304895]
[1755051091754,26.26990693,119180.0,119170.0,0.00304895]
[1755051091991,26.26990693,119180.0,119170.0,0.13260895]
[1755051093584,26.26990693,119180.0,119170.0,0.33280895]
[1755051093730,26.27190693,119180.0,119170.0,0.33280895]
[1755051093895,26.27190693,119180.0,119170.0,0.33080895]
[1755051094324,26.27390693,119180.0,119170.0,0.33080895]
[1755051094669,26.27190693,119180.0,119170.0,0.33080895]
[1755051095085,26.27590693,119180.0,119170.0,0.33080895]
[1755051097816,26.25590693,119180.0,119170.0,0.33080895]
[1755051098034,26.27590693,119180.0,119170.0,0.33080895]
[1755051099209,26.10809354,119180.0,119170.0,0.33080895]
[1755051099398,26.27590693,119180.0,119170.0,0.33080895]
[1755051101166,25.0436155,119180.0,119170.0,0.33080895]
[1755051101390,25.20829889,119180.0,119170.0,0.33080895]
[1755051101800,25.20942889,119180.0,119170.0,0.33080895]
[1755051102012,25.20629889,119180.0,119170.0,0.33080895]
[1755051102239,26.27077693,119180.0,119170.0,0.33080895]
[1755051102443,26.27390693,119180.0,119170.0,0.33080895]
[1755051102643,25.20942889,119180.0,119170.0,0.33080895]
[1755051102864,26.10609354,119180.0,119170.0,0.33080895]
[1755051103067,26.08864452,119180.0,119170.0,0.33080895]
[1755051103315,26.25645791,119180.0,119170.0,0.33080895]
[1755051103775,26.25245791,119180.0,119170.0,0.33080895]
[1755051104282,26.08464452,119180.0,119170.0,0.33080895]
[1755051104425,26.08564452,119180.0,119170.0,0.33080895]
[1755051110717,26.06564452,119180.0,119170.0,0.33080895]
[1755051110924,24.99803648,119180.0,119170.0,0.4135322]
[1755051111375,25.00116648,119180.0,119170.0,0.4135322]
[1755051111997,25.00116648,119180.0,119170.0,0.4155322]
[1755051112867,24.99803648,119180.0,119170.0,0.4155322]
[1755051113538,24.99703648,119180.0,119170.0,0.4155322]
[1755051113750,24.99703648,119180.0,119170.0,0.4165322]
[1755051114121,25.00016648,119180.0,119170.0,0.4165322]
[1755051115671,24.99703648,119180.0,119170.0,0.4165322]
[1755051118470,24.99703648,119180.0,119170.0,1.7697322]
[1755051119126,24.99703648,119180.0,119170.0,1.4198812]
[1755051119341,24.99703648,119180.0,119170.0,1.3779592]
[1755051121177,25.00024648,119180.0,119170.0,1.3779592]
[1755051122022,24.99703648,119180.0,119170.0,1.3779592]
[1755051123542,24.99703648,119180.0,119170.0,1.5279592]
[1755051123772,25.00024648,119180.0,119170.0,0.6706222]
[1755051124003,25.00024648,119180.0,119170.0,0.5665322]
[1755051124211,25.00024648,119180.0,119170.0,0.7276162]
[1755051124873,25.00024648,119180.0,119170.0,0.5665322]
[1755051125764,26.06472452,119180.0,119170.0,0.5665322]
[1755051126639,25.00024648,119180.0,119170.0,0.2869722]
[1755051126848,26.25253791,119180.0,119170.0,0.20424895]
[1755051127064,26.29400693,119180.0,119170.0,0.33336895]
[1755051128017,26.29400693,119180.0,119170.0,0.33136895]
[1755051128439,26.29400693,119180.0,119170.0,0.33236895]
[1755051128893,26.29400693,119180.0,119170.0,0.33036895]
[1755051129120,26.29500693,119180.0,119170.0,0.33036895]
[1755051129544,26.29500693,119180.0,119170.0,0.20124895]
[1755051129765,26.29500693,119180.0,119170.0,0.33040895]
[1755051134262,26.29500693,119180.0,119170.0,0.20124895]
[1755051134462,26.29500693,119180.0,119170.0,0.33032895]
[1755051138823,25.23052889,119180.0,119170.0,0.33032895]
[1755051139063,26.29500693,119180.0,119170.0,0.33032895]
[1755051143194,26.29490013,119180.0,119170.0,0.33032895]
[1755051144855,26.29490013,119180.0,119170.0,0.33012895]
[1755051146565,26.29490013,119180.0,119170.0,0.33016895]
[1755051149538,26.27088013,119180.0,119170.0,0.33016895]
[1755051150294,25.20650889,119180.0,119170.0,0.33016895]
[1755051150509,26.27088013,119180.0,119170.0,0.33016895]
[1755051151033,26.25088013,119180.0,119170.0,0.33016895]
[1755051151665,26.27088013,119180.0,119170.0,0.33016895]
[1755051154015,26.25088013,119180.0,119170.0,0.33016895]
[1755051154359,26.27088013,119180.0,119170.0,0.33016895]
[1755051155609,26.25088013,119180.0,119170.0,0.33016895]
[1755051155815,26.27088013,119180.0,119170.0,0.33016895]
[1755051171010,26.35360338,119180.0,119170.0,0.33016895]
[1755051171656,26.36198564,119180.0,119170.0,0.33016895]
[1755051171845,26.38715364,119180.0,119170.0,0.33016895]
[1755051172512,26.38615364,119180.0,119170.0,0.33016895]
[1755051172915,26.38915364,119180.0,119170.0,0.33016895]
[1755051175632,26.39015364,119180.0,119170.0,0.33016895]
[1755051181724,26.38177138,119180.0,119170.0,0.33016895]
[1755051184676,26.27388013,119180.0,119170.0,0.33016895]
[1755051185280,25.20950889,119180.0,119170.0,0.33016895]
[1755051185541,26.27067013,119180.0,119170.0,0.33016895]
[1755051185756,26.27364013,119180.0,119170.0,0.33016895]
[1755051194317,25.20926889,119180.0,119170.0,0.33016895]
[1755051194579,26.27364013,119180.0,119170.0,0.33016895]
[1755051198506,26.35636338,119180.0,119170.0,0.32952895]
[1755051199513,26.38153138,119180.0,119170.0,0.32952895]
[1755051205025,26.38153138,119180.0,119170.0,0.20124895]
[1755051205253,26.38153138,119180.0,119170.0,0.32952895]
[1755051212757,27.4462057,119180.0,119170.0,0.32952895]
[1755051215617,26.38168292,119180.0,119170.0,0.32952895]
[1755051216749,25.23443689,119180.0,119170.0,0.32952895]
[1755051216966,26.29598967,119180.0,119170.0,0.32952895]
[1755051217168,25.23461689,119180.0,119170.0,0.32952895]
[1755051217321,26.29913967,119180.0,119170.0,0.32952895]
[1755051218161,25.23461689,119180.0,119170.0,0.32952895]
[1755051218365,26.29913967,119180.0,119170.0,0.32952895]
[1755051218809,26.27397167,119180.0,119170.0,0.32952895]
[1755051219430,26.29913867,119180.0,119170.0,0.32952895]
[1755051220736,25.23461589,119180.0,119170.0,0.32952895]
[1755051220896,26.29913867,119180.0,119170.0,0.32952895]
[1755051221818,26.30752933,119180.0,119150.0,0.192056]
[1755051222023,0.19052137,119170.0,119160.0,0.20124]
[1755051222364,0.1852839,119170.0,119160.0,0.20124]
[1755051222907,0.19367527,119170.0,119160.0,0.20124]
[1755051223128,1.25819805,119170.0,119160.0,0.32948]
[1755051223946,1.25919805,119170.0,119160.0,0.32948]
[1755051226476,1.27919805,119170.0,119160.0,0.32948]
[1755051226898,1.27919133,119170.0,119160.0,0.20124]
[1755051227110,0.21466855,119170.0,119160.0,0.20124]
[1755051227322,1.27919133,119170.0,119160.0,0.20124]
[1755051227568,1.1029718,119170.0,119160.0,0.20124]
[1755051228008,0.03844902,119170.0,119160.0,0.20124]
[1755051228222,1.10820927,119170.0,119160.0,0.32948]
[1755051228452,1.1029718,119170.0,119160.0,0.32948]
[1755051229562,0.03844902,119170.0,119160.0,0.32948]
[1755051229777,1.10820927,119170.0,119160.0,0.32948]
[1755051229995,1.1029718,119170.0,119160.0,0.32948]
[1755051230425,0.03844902,119170.0,119160.0,0.32948]
[1755051230629,1.10820927,119170.0,119160.0,0.32948]
[1755051230843,1.1029718,119170.0,119160.0,0.32948]
[1755051231051,0.03844902,119170.0,119160.0,0.32948]
[1755051231252,1.10820927,119170.0,119160.0,0.32948]
[1755051231456,1.27079927,119170.0,119160.0,0.32948]
[1755051231668,1.27394927,119170.0,119160.0,0.32948]
[1755051232378,1.27590927,119170.0,119160.0,0.32948]
[1755051232935,1.27394927,119170.0,119160.0,0.32948]
[1755051233612,1.27590927,119170.0,119160.0,0.32948]
[1755051235280,2.34043205,119170.0,119160.0,0.32948]
[1755051235693,1.27590927,119170.0,119160.0,0.32948]
[1755051241688,1.27590927,119170.0,119160.0,0.20124]
[1755051241833,1.27590927,119170.0,119160.0,0.32948]
[1755051243321,2.34043205,119170.0,119160.0,0.20124]
[1755051243531,2.34043205,119170.0,119160.0,0.32948]
[1755051243532,2.40727976,119170.0,119160.0,0.32948]
[1755051244333,2.43244876,119170.0,119160.0,0.32948]
[1755051249564,2.36560105,119170.0,119160.0,0.32948]
[1755051250390,0.23655549,119170.0,119160.0,0.32948]
[1755051250563,2.36560105,119170.0,119160.0,0.32948]
[1755051251689,2.51517201,119170.0,119160.0,0.17372605]
[1755051251940,2.51517201,119170.0,119160.0,0.30196605]
[1755051252733,2.51593037,119170.0,119160.0,0.30196605]
[1755051253565,2.51693037,119170.0,119160.0,0.30196605]
[1755051254187,2.51993037,119170.0,119160.0,0.30196605]
[1755051255358,2.51993037,119170.0,119160.0,0.17372605]
[1755051255668,2.51993037,119170.0,119160.0,0.30196605]
[1755051256863,2.54306037,119170.0,119160.0,0.30196605]
[1755051260508,2.47621266,119170.0,119160.0,0.30196605]
[1755051267361,2.52655266,119170.0,119160.0,0.30196605]
[1755051267558,2.47621266,119170.0,119160.0,0.30196605]
[1755051268417,2.45308266,119170.0,119160.0,0.30196605]
[1755051269347,2.45308266,119170.0,119160.0,0.12824]
[1755051274814,2.45322362,119170.0,119160.0,0.12824]
[1755051277363,2.52007133,119170.0,119160.0,0.12824]
[1755051279160,2.50007133,119170.0,119160.0,0.12824]
[1755051279403,2.52007133,119170.0,119160.0,0.12824]
[1755051280067,2.50007133,119170.0,119160.0,0.12824]
[1755051280241,2.52007133,119170.0,119160.0,0.12824]
[1755051280465,2.50007133,119170.0,119160.0,0.12824]
[1755051280966,2.45322362,119170.0,119160.0,0.12824]
[1755051282625,2.43322362,119170.0,119160.0,0.12824]
[1755051282832,2.45322362,119170.0,119160.0,0.12824]
[1755051297089,2.37050037,119170.0,119160.0,0.12824]
[1755051297307,2.45322362,119170.0,119160.0,0.12824]
[1755051310316,2.45126362,119170.0,119160.0,0.12824]
[1755051310778,2.45335362,119170.0,119160.0,0.12824]
[1755051311693,2.44811362,119170.0,119160.0,0.12824]
[1755051312144,2.45118362,119170.0,119160.0,0.12824]
[1755051312873,2.45327362,119170.0,119160.0,0.12824]
[1755051314860,0.16785564,119150.0,119140.0,0.20124]
[1755051315119,1.23545082,119150.0,119140.0,0.32944]
[1755051315339,1.23282808,119150.0,119140.0,0.32944]
[1755051316201,1.25800008,119150.0,119140.0,0.32944]
[1755051326172,1.27800008,119150.0,119140.0,0.32944]
[1755051326605,1.35000779,119150.0,119140.0,0.20124]
[1755051326797,1.35000779,119150.0,119140.0,0.32944]
[1755051328097,1.35852646,119150.0,119140.0,0.32944]
[1755051328486,1.37597548,119150.0,119140.0,0.32944]
[1755051328689,1.37610645,119150.0,119140.0,0.32944]
[1755051329314,1.36758778,119150.0,119140.0,0.32944]
[1755051330285,1.37610224,119150.0,119140.0,0.32944]
[1755051331732,1.36758778,119150.0,119140.0,0.32944]
[1755051334726,1.35013876,119150.0,119140.0,0.32944]
[1755051336846,1.36758778,119150.0,119140.0,0.32944]
[1755051338368,1.35013876,119150.0,119140.0,0.32944]
[1755051339879,1.36758778,119150.0,119140.0,0.32944]
[1755051348827,1.36750297,119150.0,119140.0,0.32944]
[1755051356697,1.46845526,119150.0,119140.0,0.32944]
[1755051357145,1.46329526,119150.0,119140.0,0.32944]
[1755051359094,1.44329526,119150.0,119140.0,0.32944]
[1755051359310,1.46632526,119150.0,119140.0,0.32944]
[1755051359767,1.44632526,119150.0,119140.0,0.32944]
[1755051359952,1.46632526,119150.0,119140.0,0.32944]
[1755051360601,1.46329526,119150.0,119140.0,0.32944]
[1755051361276,1.46651526,119150.0,119140.0,0.32944]
[1755051361692,1.46847526,119150.0,119140.0,0.32944]
[1755051362137,1.46847526,119150.0,119140.0,0.32936]
[1755051362138,1.53532297,119150.0,119140.0,0.32936]
[1755051362564,1.61804622,119150.0,119140.0,0.32936]
[1755051363832,2.68306482,119150.0,119140.0,0.32936]
[1755051364743,1.61825046,119150.0,119140.0,0.32936]
[1755051365184,1.62025046,119150.0,119140.0,0.32936]
[1755051366470,1.62325046,119150.0,119140.0,0.32936]
[1755051369183,1.62325046,119150.0,119140.0,0.20124]
[1755051369517,0.23031875,119140.0,119130.0,4e-05]
[1755051369690,0.20534693,119120.0,119110.0,0.00101]
[1755051369889,1.35525302,119120.0,119110.0,0.00101]
[1755051370133,1.35847302,119120.0,119110.0,0.00101]
[1755051370493,1.38365502,119120.0,119110.0,0.00101]
[1755051371014,1.38365502,119120.0,119110.0,0.12913]
[1755051371015,1.38665502,119120.0,119110.0,0.12913]
[1755051371188,1.38680139,119120.0,119110.0,0.12913]
[1755051371390,1.38380139,119120.0,119110.0,0.12913]
[1755051371805,1.38680139,119120.0,119110.0,0.12913]
[1755051372039,1.38580139,119120.0,119110.0,0.12913]
[1755051373310,2.45102423,119120.0,119110.0,0.12913]
[1755051373519,1.38580139,119120.0,119110.0,0.12913]
[1755051376098,1.38580139,119120.0,119110.0,0.00101]
[1755051376318,2.45102423,119120.0,119110.0,0.12913]
[1755051376522,1.38580139,119120.0,119110.0,0.12913]
[1755051378251,2.45102423,119120.0,119110.0,0.12913]
[1755051380119,1.38580139,119120.0,119110.0,0.12913]
[1755051380486,2.45102423,119120.0,119110.0,0.12913]
[1755051384143,1.38580139,119120.0,119110.0,0.12913]
[1755051385034,1.38580139,119120.0,119110.0,0.12933]
[1755051385246,1.46828582,119120.0,119110.0,0.12933]
[1755051385470,1.38580139,119120.0,119110.0,0.12933]
[1755051386140,2.45102423,119120.0,119110.0,0.12933]
[1755051386790,1.38580139,119120.0,119110.0,0.12933]
[1755051387277,2.45102423,119120.0,119110.0,0.12933]
[1755051387740,2.45102423,119120.0,119110.0,0.12929]
[1755051390171,2.46659056,119120.0,119110.0,0.12929]
[1755051391767,2.4679664,119120.0,119110.0,0.12929]
[1755051392404,2.45240007,119120.0,119110.0,0.12929]
[1755051392586,2.46797581,119120.0,119110.0,0.12929]
[1755051394327,1.40206505,119120.0,119110.0,0.12935]
[1755051394545,1.40206505,119120.0,119110.0,0.12929]
[1755051395450,2.46797581,119120.0,119110.0,0.12929]
[1755051396336,2.46799463,119120.0,119110.0,0.12929]
[1755051399405,0.03744902,119100.0,119090.0,0.20136]
[1755051399624,2.42724737,119100.0,119090.0,0.32952]
[1755051399835,2.4249699,119100.0,119090.0,0.32952]
[1755051400287,2.4249699,119100.0,119090.0,0.20136]
[1755051400288,2.4333662,119100.0,119090.0,0.20136]
[1755051400499,2.44899567,119100.0,119090.0,0.32952]
[1755051400867,2.45727871,119100.0,119090.0,0.33052]
[1755051401431,2.48246771,119100.0,119090.0,0.33052]
[1755051401765,2.4824655,119100.0,119090.0,0.32952]
[1755051402496,2.4834655,119100.0,119090.0,0.32952]
[1755051403973,2.4844655,119100.0,119090.0,0.32952]
[1755051408490,2.46883824,119100.0,119090.0,0.32952]
[1755051408698,2.48445676,119100.0,119090.0,0.32952]
[1755051409223,2.48445713,119100.0,119090.0,0.32952]
[1755051409428,2.46883824,119100.0,119090.0,0.32952]